bitfinex-derivatives/quotes_SOLF0:USTF0_20250929
["timestamp","ask_amount","ask_price","bid_price","bid_amount"]
[1759173137110,8.06,211.79,211.7,7.98]
[1759173137412,12.3067,211.79,211.71,4.248]
[1759173138012,4.247,211.78,211.71,4.248]
[1759173139713,4.2471,211.77,211.7,7.98]
[1759173139908,8.06,211.79,211.7,7.98]
[1759173140309,8.06,211.79,211.7,12.2283]
[1759173141723,8.06,211.76,211.68,4.2488]
[1759173142715,4.2476,211.75,211.68,4.2488]
[1759173143718,8.06,211.76,211.69,7.98]
[1759173144317,8.06,211.76,211.66,4.2492]
[1759173144716,8.06,211.76,211.67,7.61]
[1759173144916,12.3073,211.76,211.69,4.2485]
[1759173145417,4.2478,211.74,211.67,7.61]
[1759173145609,7.63,211.75,211.63,7.61]
[1759173145811,11.063976,211.75,211.63,7.61]
[1759173146623,7.63,211.74,211.64,4.2496]
[1759173146817,7.63,211.74,211.59,7.61]
[1759173146818,7.63,211.71,211.59,7.61]
[1759173147115,191.0949,211.71,211.59,7.61]
[1759173147522,4.2494,211.66,211.59,7.61]
[1759173147924,4.2494,211.66,211.59,22.12131518]
[1759173148321,7.63,211.67,211.59,22.12131518]
[1759173149327,4.2493,211.66,211.59,26.37181518]
[1759173149622,7.63,211.67,211.59,22.12131518]
[1759173150423,11.8791,211.67,211.6,4.2503]
[1759173151127,4.2494,211.66,211.59,7.61]
[1759173152030,4.2494,211.66,211.59,21.54468197]
[1759173152332,4.2494,211.66,211.59,25.79518197]
[1759173154033,4.2488,211.68,211.6,7.61]
[1759173155832,4.2488,211.68,211.61,4.25]
[1759173157733,4.2491,211.67,211.6,7.61]
[1759173158733,4.2491,211.67,211.61,4.2501]
[1759173160838,4.2491,211.67,211.6,7.61]
[1759173161032,4.2494,211.66,211.6,7.61]
[1759173164345,7.63,211.64,211.6,7.61]
[1759173164545,7.63,211.69,211.6,7.61]
[1759173165142,4.2497,211.64,211.6,7.61]
[1759173165347,4.2497,211.64,211.61,7.61]
[1759173167148,4.2497,211.64,211.58,4.2507]
[1759173167350,11.8793,211.66,211.59,7.61]
[1759173169047,4.2489,211.68,211.6,3.433976]
[1759173169245,4.2489,211.68,211.61,7.61]
[1759173170351,4.2492,211.67,211.61,7.61]
[1759173171652,4.2493,211.66,211.61,7.61]
[1759173171851,4.2493,211.66,211.6,11.8603]
[1759173172451,4.2489,211.68,211.61,4.2501]
[1759173172652,7.63,211.69,211.6,7.61]
[1759173174555,4.2493,211.66,211.6,11.8603]
[1759173177456,4.2496,211.65,211.61,7.28]
[1759173177656,4.2496,211.65,211.58,3.433976]
[1759173177960,4.2496,211.65,211.59,7.28]
[1759173178157,4.2496,211.65,211.6,4.2503]
[1759173178455,3.433976,211.73,211.59,7.28]
[1759173178456,5.29262687,211.78,211.62,7.28]
[1759173178649,7.54,211.72,211.62,7.28]
[1759173179554,4.2489,211.68,211.62,11.5299]
[1759173180062,4.2495,211.65,211.62,7.28]
[1759173180264,7.54,211.68,211.62,7.28]
[1759173181557,69.530576,211.67,211.58,7.28]
[1759173181758,124.3,211.66,211.58,7.28]
[1759173182055,4.2497,211.64,211.58,7.28]
[1759173182556,11.7893,211.66,211.58,7.28]
[1759173182755,7.54,211.7,211.6,7.28]
[1759173182962,7.54,211.7,211.62,7.28]
[1759173183156,4.2481,211.72,211.65,4.2493]
[1759173183361,4.2481,211.72,211.66,7.28]
[1759173183957,4.2481,211.72,211.66,11.5291]
[1759173184158,11.7877,211.74,211.66,7.28]
[1759173184355,7.54,211.74,211.66,7.28]
[1759173184664,4.2479,211.73,211.66,7.28]
[1759173186363,4.2479,211.73,211.66,11.5291]
[1759173186765,7.54,211.74,211.66,11.5291]
[1759173187665,7.54,211.74,211.66,7.28]
[1759173189063,11.7877,211.74,211.66,4.2491]
[1759173189254,116.76,211.75,211.67,7.28]
[1759173189665,124.3,211.78,211.7,4.2484]
[1759173189863,124.3,211.78,211.71,7.28]
[1759173190064,7.54,211.78,211.71,7.28]
[1759173190858,116.76,211.79,211.67,11.5288]
[1759173191065,120.193976,211.79,211.67,11.5288]
[1759173191966,7.54,211.78,211.67,11.5288]
[1759173192365,2.1976828,211.77,211.68,2.1976828]
[1759173192561,4.2476,211.75,211.68,2.1976828]
[1759173193560,4.2478,211.74,211.68,2.1976828]
[1759173193964,7.54,211.75,211.68,2.1976828]
[1759173194168,7.86,211.71,211.67,7.28]
[1759173195166,7.86,211.71,211.64,2.1976828]
[1759173195367,7.86,211.71,211.63,7.42]
[1759173195567,7.86,211.71,211.64,2.1976828]
[1759173195757,12.1084,211.71,211.64,2.1976828]
[1759173196358,7.86,211.71,211.64,2.1976828]
[1759173196872,7.86,211.71,211.63,7.42]
[1759173197067,7.86,211.66,211.59,7.42]
[1759173197871,4.2496,211.65,211.59,7.42]
[1759173198466,7.86,211.63,211.59,7.42]
[1759173198661,7.86,211.64,211.58,7.42]
[1759173199671,4.25,211.63,211.59,7.42]
[1759173201374,7.86,211.65,211.59,7.42]
[1759173202670,4.2489,211.68,211.59,7.42]
[1759173202868,6.4465828,211.68,211.6,7.42]
[1759173203574,6.4465828,211.68,211.6,11.6704]
[1759173204166,2.1976828,211.68,211.6,7.42]
[1759173204869,2.1976828,211.66,211.6,7.42]
[1759173205576,4.2498,211.64,211.57,2.1976828]
[1759173206574,4.2498,211.64,211.56,28.49121862]
[1759173207476,4.2498,211.64,211.57,4.2509]
[1759173209678,4.2498,211.64,211.58,2.1976828]
[1759173211777,4.2498,211.64,211.57,4.2509]
[1759173212076,4.2498,211.64,211.57,6.4485828]
[1759173213273,8.65261725,211.68,211.62,7.88]
[1759173213471,7.83,211.68,211.62,7.88]
[1759173214076,12.0791,211.67,211.62,7.88]
[1759173214381,7.83,211.67,211.61,7.88]
[1759173214567,152.88575199,211.72,211.57,7.88]
[1759173214568,7.83,211.63,211.57,7.88]
[1759173215576,4.2501,211.62,211.56,14.16233582]
[1759173215872,2.1976828,211.64,211.58,7.88]
[1759173216073,7.83,211.61,211.55,2.1976828]
[1759173216280,7.83,211.6,211.53,16.34321448]
[1759173216680,4.2513,211.56,211.53,2.1976828]
[1759173216874,12.0813,211.56,211.52,7.88]
[1759173217070,7.83,211.59,211.52,7.88]
[1759173217670,7.83,211.55,211.49,2.1976828]
[1759173217885,7.83,211.55,211.48,7.88]
[1759173218687,7.83,211.55,211.49,2.1976828]
[1759173219284,7.83,211.55,211.48,7.88]
[1759173219587,7.83,211.55,211.49,2.1976828]
[1759173219776,7.83,211.55,211.48,7.88]
[1759173219976,10.0276828,211.55,211.47,2.1976828]
[1759173221176,4.2518,211.54,211.47,2.1976828]
[1759173221885,10.0276828,211.55,211.47,2.1976828]
[1759173222079,7.83,211.54,211.46,10.0776828]
[1759173222390,2.1976828,211.55,211.44,2.1976828]
[1759173222391,7.83,211.52,211.44,2.1976828]
[1759173223686,4.2526,211.5,211.43,7.88]
[1759173223984,4.2526,211.5,211.44,2.1976828]
[1759173224287,7.83,211.6,211.48,2.1976828]
[1759173224484,7.83,211.6,211.52,2.1976828]
[1759173224782,7.83,211.6,211.54,2.1976828]
[1759173225577,12.0805,211.6,211.54,2.1976828]
[1759173229884,66.1321,211.56,211.44,7.88]
[1759173230081,2.1976828,211.54,211.45,2.1976828]
[1759173231289,7.83,211.53,211.45,2.1976828]
[1759173231587,4.2524,211.51,211.45,2.1976828]
[1759173235184,4.2524,211.51,211.44,7.88]
[1759173235386,4.2524,211.51,211.44,10.0776828]
[1759173235591,12.3226,211.5,211.44,10.0776828]
[1759173235892,8.07,211.5,211.44,7.88]
[1759173236086,8.07,211.5,211.37,66.1898]
[1759173236087,8.07,211.5,211.45,2.1976828]
[1759173236292,8.07,211.5,211.46,7.27]
[1759173236887,8.07,211.58,211.5,7.27]
[1759173237085,124.87,211.62,211.54,9.4676828]
[1759173237286,3.24297405,211.61,211.54,9.4676828]
[1759173237791,4.2505,211.6,211.56,2.1976828]
[1759173237989,124.87,211.62,211.56,2.1976828]
[1759173237990,8.07,211.62,211.56,9.4676828]
[1759173238189,2.1976828,211.66,211.58,2.1976828]
[1759173238390,116.8,211.65,211.58,2.1976828]
[1759173238589,11.31356802,211.64,211.58,2.1976828]
[1759173238789,8.07,211.64,211.58,2.1976828]
[1759173239591,8.07,211.64,211.56,9.4676828]
[1759173239794,3.24574959,211.63,211.56,9.4676828]
[1759173240490,3.24574959,211.63,211.58,2.1976828]
[1759173240689,11.31574959,211.64,211.59,7.27]
[1759173240993,8.07,211.63,211.58,9.4676828]
[1759173241490,8.07,211.63,211.58,2.1976828]
[1759173241690,8.07,211.63,211.59,7.27]
[1759173242789,4.2492,211.66,211.6,2.1976828]
[1759173242994,116.78,211.69,211.6,7.27]
[1759173243190,4.2494,211.66,211.6,9.4676828]
[1759173243382,7.49731807,211.66,211.6,9.4676828]
[1759173243582,3.24791807,211.66,211.6,9.4676828]
[1759173245799,3.24810714,211.66,211.6,9.4676828]
[1759173246498,4.2492,211.67,211.6,9.4676828]
[1759173247296,8.07,211.66,211.58,2.1976828]
[1759173247501,116.76,211.68,211.63,7.27]
[1759173247798,3.24854277,211.67,211.63,7.27]
[1759173248200,3.24854277,211.68,211.63,7.27]
[1759173248402,3.24854277,211.68,211.62,2.1976828]
[1759173248403,3.24854277,211.69,211.64,2.1976828]
[1759173248699,2.1976828,211.73,211.64,2.1976828]
[1759173248700,114.22099476,211.72,211.64,2.1976828]
[1759173248899,3.24854277,211.71,211.64,2.1976828]
[1759173249695,8.07,211.67,211.61,2.1976828]
[1759173250602,12.3192,211.67,211.61,2.1976828]
[1759173250797,8.07,211.67,211.48,66.1555]
[1759173250998,3.24879952,211.66,211.57,2.1976828]
[1759173251698,5.44648232,211.66,211.57,2.1976828]
[1759173252299,3.24879952,211.66,211.55,7.27]
[1759173252796,4.2498,211.64,211.55,11.5214]
[1759173253002,12.3198,211.64,211.55,11.5214]
[1759173253206,12.3198,211.64,211.55,7.27]
[1759173253408,4.25,211.63,211.55,7.27]
[1759173254006,12.3204,211.61,211.51,11.5222]
[1759173256010,3.25143334,211.6,211.51,7.27]
[1759173256508,4.251,211.58,211.51,7.27]
[1759173260408,7.50183334,211.6,211.51,7.27]
[1759173261104,7.97,211.58,211.51,7.27]
[1759173261908,3.25394131,211.57,211.48,4.2527]
[1759173262605,4.2514,211.56,211.48,4.2527]
[1759173263202,4.2514,211.56,211.47,7.66]
[1759173263402,7.50534131,211.56,211.47,7.66]
[1759173263810,4.2514,211.56,211.47,7.66]
[1759173264011,7.97,211.57,211.47,7.66]
[1759173264210,69.56021737,211.59,211.47,7.66]
[1759173264211,7.69,211.55,211.47,7.66]
[1759173264703,7.69,211.59,211.47,7.66]
[1759173264908,3.25383361,211.58,211.47,7.66]
[1759173266607,4.2512,211.57,211.49,7.47]
[1759173268111,4.2512,211.57,211.49,11.7225]
[1759173269215,3.25383361,211.58,211.53,7.47]
[1759173269512,3.25383361,211.63,211.53,7.47]
[1759173269710,3.25383361,211.62,211.53,7.47]
[1759173270015,7.50373361,211.63,211.55,4.2513]
[1759173270212,3.25383361,211.63,211.56,7.47]
[1759173270513,3.25383361,211.67,211.59,7.47]
[1759173270714,3.25383361,211.66,211.59,7.47]
[1759173270910,3.25383361,211.67,211.59,7.47]
[1759173271211,7.50323361,211.66,211.59,7.47]
[1759173271406,3.25383361,211.65,211.59,7.47]
[1759173271612,3.25383361,211.67,211.59,7.47]
[1759173271905,3.25383361,211.66,211.59,7.47]
[1759173272108,3.25383361,211.67,211.59,7.47]
[1759173272305,3.25383361,211.66,211.59,7.47]
[1759173272506,3.25383361,211.67,211.59,7.47]
[1759173272707,3.25383361,211.66,211.59,11.7205]
[1759173272909,3.25383361,211.66,211.59,7.47]
[1759173273107,3.25383361,211.67,211.59,7.47]
[1759173273313,4.2494,211.66,211.59,7.47]
[1759173273618,3.25383361,211.67,211.61,3.43781737]
[1759173273812,3.25383361,211.71,211.62,7.47]
[1759173274014,3.25383361,211.7,211.62,7.47]
[1759173274208,3.25383361,211.69,211.62,7.47]
[1759173274409,3.25383361,211.71,211.62,7.47]
[1759173274608,7.50233361,211.7,211.62,7.47]
[1759173274912,3.25383361,211.69,211.61,3.43781737]
[1759173275117,7.69,211.67,211.54,10.90781737]
[1759173275315,3.25383361,211.66,211.54,10.90781737]
[1759173275514,3.25383361,211.65,211.54,10.90781737]
[1759173275712,3.25383361,211.64,211.54,10.90781737]
[1759173275913,4.2498,211.64,211.54,10.90781737]
[1759173276109,3.25383361,211.63,211.54,7.47]
[1759173277712,4.2502,211.62,211.54,7.47]
[1759173279321,7.5051257,211.62,211.54,7.47]
[1759173279515,3.25570513,211.61,211.54,7.47]
[1759173279715,4.2502,211.62,211.54,7.47]
[1759173280023,3.25570513,211.62,211.54,7.47]
[1759173280221,3.25570513,211.63,211.54,11.7215]
[1759173280422,3.25570513,211.62,211.54,11.7215]
[1759173280721,3.25570513,211.61,211.54,11.7215]
[1759173280924,7.69,211.62,211.54,7.47]
[1759173281119,3.25570513,211.61,211.54,7.47]
[1759173281320,7.69,211.59,211.51,7.47]
[1759173281520,3.25570513,211.58,211.51,7.47]
[1759173281921,3.25570513,211.62,211.51,7.47]
[1759173282224,3.25570513,211.61,211.53,7.47]
[1759173282424,3.25570513,211.6,211.53,7.47]
[1759173282625,7.69,211.63,211.53,7.47]
[1759173282626,3.25570513,211.59,211.54,4.2516]
[1759173282828,3.25570513,211.62,211.55,7.47]
[1759173283029,3.25570513,211.61,211.55,7.47]
[1759173283228,3.25570513,211.6,211.55,7.47]
[1759173283424,3.25570513,211.62,211.55,7.47]
[1759173283625,3.25570513,211.61,211.55,7.47]
[1759173283824,3.25570513,211.6,211.54,11.7216]
[1759173284133,3.25570513,211.62,211.54,11.7216]
[1759173284325,3.25570513,211.61,211.54,11.7216]
[1759173284524,3.25570513,211.6,211.54,11.7216]
[1759173284720,3.25570513,211.62,211.54,11.7216]
[1759173284924,3.25570513,211.61,211.54,11.7216]
[1759173286831,7.50610513,211.6,211.51,4.2521]
[1759173287031,3.25570513,211.59,211.51,4.2521]
[1759173287230,3.25570513,211.58,211.52,7.47]
[1759173287433,3.25570513,211.6,211.52,7.47]
[1759173287832,3.25570513,211.62,211.57,7.47]
[1759173288032,3.25570513,211.64,211.57,3.43781737]
[1759173288233,3.25570513,211.63,211.58,7.47]
[1759173288432,3.25570513,211.67,211.57,10.90781737]
[1759173288634,3.25570513,211.66,211.57,10.90781737]
[1759173288836,3.25570513,211.65,211.57,10.90781737]
[1759173289032,3.25570513,211.64,211.57,10.90781737]
[1759173289335,3.25570513,211.63,211.57,10.90781737]
[1759173289530,3.25570513,211.67,211.57,10.90781737]
[1759173289733,3.25570513,211.66,211.58,4.2507]
[1759173289929,3.25570513,211.65,211.58,4.2507]
[1759173290133,3.25570513,211.64,211.57,7.47]
[1759173290330,3.25570513,211.63,211.57,7.47]
[1759173290530,3.25570513,211.65,211.57,7.47]
[1759173290828,3.25570513,211.64,211.57,7.47]
[1759173291132,3.25570513,211.63,211.57,7.47]
[1759173291323,3.25570513,211.62,211.57,7.47]
[1759173291523,3.25570513,211.65,211.57,7.47]
[1759173291724,7.69,211.63,211.57,7.47]
[1759173291930,7.69,211.61,211.56,4.2512]
[1759173292126,7.69,211.61,211.56,11.7212]
[1759173292632,4.2498,211.64,211.57,7.47]
[1759173292830,3.25707659,211.63,211.57,3.43781737]
[1759173293034,3.25707659,211.67,211.57,3.43781737]
[1759173293235,3.25707659,211.66,211.58,7.47]
[1759173293536,3.25707659,211.65,211.58,7.47]
[1759173293838,3.25707659,211.64,211.58,7.47]
[1759173294034,3.25707659,211.67,211.58,7.47]
[1759173294338,3.25707659,211.66,211.58,7.47]
[1759173294532,3.25707659,211.65,211.58,7.47]
[1759173294733,3.25707659,211.64,211.59,4.2505]
[1759173294935,3.25707659,211.63,211.59,4.2505]
[1759173295130,3.25707659,211.67,211.59,7.98]
[1759173295335,3.25707659,211.66,211.59,7.98]
[1759173295535,3.25707659,211.65,211.61,7.98]
[1759173295736,7.69,211.68,211.61,7.98]
[1759173296035,3.25719787,211.67,211.61,7.98]
[1759173296236,3.25719787,211.66,211.6,12.2304]
[1759173296532,3.25719787,211.65,211.61,7.98]
[1759173296737,3.25719787,211.67,211.61,7.98]
[1759173296936,1.425e-05,211.66,211.65,4.2495]
[1759173297135,1.425e-05,211.66,211.62,66.1119]
[1759173297136,5.29262687,211.77,211.68,66.0941]
[1759173297334,0.82218967,211.82,211.73,7.98]
[1759173297540,4.2463,211.81,211.73,7.98]
[1759173298637,7.99,211.78,211.67,7.98]
[1759173298838,7.99,211.78,211.67,11.41781737]
[1759173300435,12.237,211.78,211.68,4.2487]
[1759173300629,7.99,211.78,211.67,7.98]
[1759173300934,3.43781737,211.76,211.63,11.41781737]
[1759173301336,7.99,211.72,211.63,11.41781737]
[1759173301537,69.50751737,211.76,211.58,3.43781737]
[1759173301538,11.42781737,211.73,211.58,3.43781737]
[1759173302039,4.2482,211.72,211.6,4.2503]
[1759173302234,7.99,211.71,211.6,12.2303]
[1759173302740,12.2384,211.71,211.61,4.2501]
[1759173303638,4.2486,211.7,211.61,4.2501]
[1759173304142,7.99,211.71,211.61,4.2501]
[1759173305540,12.2384,211.71,211.61,4.2501]
[1759173306138,7.99,211.71,211.62,7.98]
[1759173306744,4.2488,211.69,211.58,4.2507]
[1759173307042,7.99,211.69,211.58,4.2507]
[1759173308637,12.2392,211.66,211.58,4.2507]
[1759173308937,7.99,211.66,211.55,4.2513]
[1759173309446,4.2496,211.65,211.55,4.2513]
[1759173310946,7.99,211.66,211.57,7.98]
[1759173312451,7.99,211.66,211.58,2.20003006]
[1759173312652,7.99,211.66,211.58,6.45073006]
[1759173313150,7.99,211.66,211.58,2.20003006]
[1759173313350,7.99,211.64,211.56,2.20003006]
[1759173313751,7.99,211.64,211.56,14.43113006]
[1759173315156,12.2398,211.64,211.56,10.18003006]
[1759173316153,12.2398,211.64,211.57,2.20003006]
[1759173316549,4.25,211.63,211.56,2.20003006]
[1759173317756,7.77,211.62,211.54,2.35210983]
[1759173318054,2.20003006,211.61,211.54,2.35210983]
[1759173318355,7.77,211.57,211.54,2.35210983]
[1759173318747,9.97003006,211.61,211.54,2.35210983]
[1759173318947,4.2507,211.6,211.54,2.35210983]
[1759173319855,7.77,211.58,211.54,2.35210983]
[1759173320056,7.77,211.6,211.54,2.35210983]
[1759173320453,4.2511,211.57,211.54,2.35210983]
[1759173320759,7.77,211.57,211.47,12.3031]
[1759173321059,9.97003006,211.57,211.47,8.05]
[1759173321252,7.77,211.54,211.47,8.05]
[1759173321455,4.2528,211.49,211.44,2.20003006]
[1759173321647,4.2528,211.49,211.35,2.20003006]
[1759173321648,2.20003006,211.45,211.35,2.20003006]
[1759173321849,7.77,211.44,211.35,2.20003006]
[1759173322049,4.2545,211.4,211.32,8.05]
[1759173322254,4.2545,211.4,211.19,0.82303553]
[1759173322255,7.77,211.39,211.3,2.20003006]
[1759173322454,3.25519523,211.38,211.3,2.20003006]
[1759173322650,2.20003006,211.36,211.28,8.05]
[1759173322953,2.20003006,211.36,211.23,8.05]
[1759173322954,2.20003006,211.33,211.23,8.05]
[1759173323160,2.20003006,211.34,211.24,4.2577]
[1759173323456,2.20003006,211.34,211.23,8.05]
[1759173323655,7.77,211.33,211.23,8.05]
[1759173324360,72.35,211.33,211.23,8.05]
[1759173324658,96.91,211.33,211.23,8.05]
[1759173325957,4.2561,211.32,211.23,8.05]
[1759173326166,7.7,211.31,211.18,7.93]
[1759173326455,11.9574,211.26,211.13,7.93]
[1759173326652,117.46,211.25,211.13,7.93]
[1759173327459,4.2577,211.24,211.13,7.93]
[1759173327657,7.7,211.23,211.13,7.93]
[1759173328561,7.7,211.23,211.08,12.1908]
[1759173328764,4.2582,211.22,211.08,12.1908]
[1759173329560,7.7,211.19,211.04,5.43469549]
[1759173329764,7.7,211.19,211.05,7.93]
[1759173330466,48.2,211.19,211.05,7.93]
[1759173330666,52.4588,211.19,211.05,7.93]
[1759173331662,7.7,211.19,211.05,7.93]
[1759173332065,38.7,211.19,211.06,7.93]
[1759173332661,104.9475,211.19,211.06,7.93]
[1759173332867,104.9475,211.19,211.01,7.84740617]
[1759173332868,7.7,211.14,211.01,10.34271068]
[1759173333061,7.7,211.14,211.01,7.93]
[1759173333267,5.43469549,211.11,210.95,7.93]
[1759173333467,73.979,211.09,210.95,7.93]
[1759173333668,4.2616,211.05,210.95,7.93]
[1759173333974,7.7,211.03,210.9,13.36469549]
[1759173334179,7.7,211.03,210.9,7.93]
[1759173334575,7.7,211.08,210.9,7.93]
[1759173334779,19.26,211.07,210.91,5.43469549]
[1759173334980,7.7,211.06,210.9,12.1945]
[1759173335177,66.2987,211.03,210.91,7.93]
[1759173335375,7.7,211.02,210.86,13.36469549]
[1759173335679,4.2624,211.01,210.86,12.1953]
[1759173336075,7.7,211.02,210.86,7.93]
[1759173336275,41.08,211.02,210.86,7.93]
[1759173336474,41.08,211.02,210.87,7.93]
[1759173336681,7.7,211.02,210.91,7.93]
[1759173336874,51.92,211.03,210.91,7.93]
[1759173337574,7.7,211.02,210.88,5.43469549]
[1759173337776,4.2624,211.01,210.88,5.43469549]
[1759173338284,4.263,210.98,210.88,5.43469549]
[1759173338486,7.7,210.97,210.87,7.93]
[1759173338882,7.7,210.95,210.82,7.93]
[1759173340185,11.9636,210.95,210.82,7.93]
[1759173340980,66.3186,210.97,210.77,11.5771059]
[1759173340981,66.3361,210.91,210.77,14.07241041]
[1759173341181,7.7,210.89,210.77,7.93]
[1759173341581,7.7,210.89,210.63,66.4207]
[1759173341582,66.3468,210.88,210.7,7.93]
[1759173341788,7.7,210.84,210.7,7.93]
[1759173342179,71.24,210.85,210.72,7.93]
[1759173342782,126.4,210.89,210.76,7.93]
[1759173343381,126.4,210.89,210.76,12.1973]
[1759173343577,126.38,210.89,210.77,7.93]
[1759173344278,4.265,210.88,210.77,7.93]
[1759173345478,126.38,210.89,210.77,7.93]
[1759173345889,118.8,210.88,210.77,7.93]
[1759173346292,7.7,210.87,210.72,13.36469549]
[1759173346490,74.052,210.86,210.72,7.93]
[1759173346690,11.9661,210.83,210.72,7.93]
[1759173346894,118.9,210.82,210.72,7.93]
[1759173347886,7.7,210.83,210.72,7.93]
[1759173348091,7.7,210.88,210.73,7.93]
[1759173348290,57.46,210.87,210.77,7.93]
[1759173349087,7.7,210.86,210.73,7.93]
[1759173349391,4.2656,210.85,210.73,7.93]
[1759173349592,124.14,210.86,210.73,7.93]
[1759173350388,325.94,210.9,210.77,7.93]
[1759173350694,325.94,210.9,210.8,5.43469549]
[1759173350695,7.7,210.9,210.8,5.43469549]
[1759173350897,66.3207,210.96,210.81,7.93]
[1759173351093,120.6,210.95,210.81,7.93]
[1759173351891,4.2642,210.92,210.81,7.93]
[1759173352192,7.7,210.92,210.81,7.93]
[1759173353097,7.7,210.97,210.81,7.93]
[1759173353290,7.7,210.97,210.8,71.80449549]
[1759173353291,7.7,210.97,210.85,7.93]
[1759173353795,11.9632,210.97,210.85,7.93]
[1759173353990,7.7,210.97,210.85,7.93]
[1759173355596,4.2636,210.95,210.85,7.93]
[1759173355791,119.08,210.96,210.85,7.93]
[1759173355987,7.63,210.95,210.85,7.93]
[1759173356194,7.63,210.91,210.82,5.43469549]
[1759173356393,7.63,210.91,210.8,7.42]
[1759173357196,7.63,210.91,210.8,11.6866]
[1759173357500,123.3642,210.93,210.83,7.42]
[1759173357795,119.06,210.93,210.85,4.2656]
[1759173358300,119.06,210.93,210.83,7.42]
[1759173358697,185.3665,210.94,210.83,7.42]
[1759173358897,7.63,210.93,210.83,7.42]
[1759173359199,11.8948,210.89,210.78,12.85469549]
[1759173359699,7.63,210.89,210.79,4.2668]
[1759173360195,7.63,210.89,210.8,4.2664]
[1759173360399,49.78,210.92,210.83,7.42]
[1759173360800,103.28,210.94,210.83,7.42]
[1759173360994,4.2642,210.92,210.83,7.42]
[1759173361193,7.63,210.93,210.79,4.2668]
[1759173361394,7.63,210.89,210.78,12.85469549]
[1759173361600,11.8956,210.86,210.78,7.42]
[1759173361801,7.63,210.86,210.78,7.42]
[1759173362499,119.02,210.89,210.79,7.42]
[1759173362893,69.70748303,211.03,210.88,4.265]
[1759173362894,7.63,210.97,210.88,4.265]
[1759173363198,7.63,210.97,210.86,7.42]
[1759173363398,11.8933,210.97,210.86,7.42]
[1759173363598,11.8933,210.97,210.82,5.43469549]
[1759173364102,7.63,210.93,210.81,7.42]
[1759173365401,4.2644,210.92,210.81,11.6864]
[1759173365699,7.63,210.9,210.79,71.80639549]
[1759173365904,7.63,210.95,210.84,7.42]
[1759173366207,119.36,210.94,210.84,7.42]
[1759173366402,7.63,210.99,210.87,73.7682]
[1759173366600,7.63,210.99,210.87,12.85469549]
[1759173367002,7.63,210.99,210.87,79.20249549]
[1759173367503,7.63,210.99,210.89,66.3408]
[1759173367703,442.2622,211.02,210.9,73.7586]
[1759173368100,7.50224101,211.01,210.9,7.42]
[1759173368504,7.63,211.0,210.9,7.42]
[1759173368810,119.46,211.0,210.9,7.42]
[1759173369607,318.54,211.02,210.91,5.43469549]
[1759173369811,3.24498925,211.01,210.97,7.42]
[1759173370002,3.24498925,211.01,210.96,66.3197]
[1759173370003,3.24416646,211.08,211.03,4.262]
[1759173370307,3.24416646,211.09,210.99,12.85469549]
[1759173370510,7.63,211.08,210.95,12.85469549]
[1759173370706,3.24416646,211.07,210.95,12.85469549]
[1759173370905,3.24416646,211.07,210.96,4.2634]
[1759173371102,3.248512,211.06,210.96,4.2634]